Cogmind - Beta 17 @@@ ROGUE MODE // 2026.08.22 @ 07:23:47 Player: Six of Ten Result: Self-destructed Performance ------------- Evolutions (0) 0 Regions Visited (4) 800 Robots Destroyed (39) 195 Value Destroyed (900) 900 Prototype IDs (0) 0 Alien Tech Used (0) 0 Bonus (284) 284 TOTAL SCORE: 2179 Bonus ------- Registered with UFD 300 Friendly Fire -16 Cogmind --------- Core Integrity 84/250 Matter 226/300 Energy 125/125 System Corruption 0% Temperature Cool (0) Movement Rolling (115) Ox1 Location -7/Scraptown Parts ------- > --- POWER (1) -------- Light Ion Engine > --- PROPULSION (2) --- Spiked Treads Compact Wheel > --- UTILITY (2) ------ Large Storage Unit Subdweller Optics > --- WEAPON (2) ------- Light Assault Rifle Light Assault Rifle > --- INVENTORY (15) --- Wheel Wheel Wheel Large Storage Unit Sensor Array Reactive Plating Improved Field Recycling Unit (0) Assault Rifle Light Assault Rifle Light Cannon Grenade Launcher Rocket Launcher Datajack Welding Torch Heavy Mace Peak State ------------ > --- POWER ------------ Light Ion Engine > --- PROPULSION ------- Spiked Treads Compact Wheel > --- UTILITY ---------- Large Storage Unit Subdweller Optics > --- WEAPON ----------- Light Cannon Rocket Launcher > --- INVENTORY -------- Wheel Wheel Wheel Large Storage Unit Sensor Array Reactive Plating Improved Field Recycling Unit Assault Rifle Light Assault Rifle Light Assault Rifle Light Assault Rifle Light Cannon Grenade Launcher Datajack Welding Torch [Rating: 12] Favorites ----------- Power Light Ion Engine Engine Light Ion Engine Propulsion Light Treads Treads Light Treads Wheel Compact Wheel Utility Large Storage Unit Device Subdweller Optics Storage Large Storage Unit Processor Visual Processing Unit Protection Light Armor Plating Weapon Light Assault Rifle Ballistic Gun Light Assault Rifle Ballistic Cannon Light Cannon Launcher Rocket Launcher Build | -11 -10 -10 -10 -7 ------- Run | Yrd Mat Min Sub Scr Slots Evolved . | . . . . . Power . | . . . . . Propulsion . | . . . . . Utility . | . . . . . Weapon . | . . . . . Parts Attached 21 | 8 3 5 5 . Power 2 | 2 . . . . Engine 2 | 2 . . . . Core . | . . . . . Reactor . | . . . . . Propulsion 5 | 2 . 1 2 . Treads 3 | 2 . . 1 . Leg . | . . . . . Wheel 2 | . . 1 1 . Hover . | . . . . . Flight . | . . . . . Utility 6 | 2 1 1 2 . Device 2 | 1 . . 1 . Storage 2 | 1 1 . . . Processor 1 | . . . 1 . Hackware . | . . . . . Protection 1 | . . 1 . . Artifact . | . . . . . Weapon 8 | 2 2 3 1 . Energy Gun . | . . . . . Energy Cannon . | . . . . . Ballistic Gun 4 | 2 1 1 . . Ballistic Cannon 2 | . . 1 1 . Launcher 2 | . 1 1 . . Special Weapon . | . . . . . Impact Weapon . | . . . . . Slashing Weapon . | . . . . . Piercing Weapon . | . . . . . Special Melee Weapon . | . . . . . Unidentified Prototypes . | . . . . . Parts Lost 7 | . 2 2 3 . Power 1 | . 1 . . . Propulsion 3 | . . 1 2 . Utility 2 | . . 1 1 . Weapon 1 | . 1 . . . Highest Loss Streak 3 | . 1 3 1 . To Critical Strikes . | . . . . . Average Backups 12 | 4 10 14 12 14 Power . | . 1 . . . Propulsion 3 | 3 3 4 3 3 Utility 2 | . 1 2 2 3 Weapon 4 | . 3 5 5 6 Tool/Special . | . . . . . Unused Backups 17 | . 3 2 . 12 Power . | . . . . . Propulsion 6 | . 3 . . 3 Utility 4 | . . . . 4 Weapon 5 | . . 2 . 3 Tool/Special 2 | . . . . 2 Average Slot Usage (%) 97 | . 99 86 94 100 Engine 13 | . 13 7 14 14 Treads 18 | . 28 14 4 14 Wheel 8 | . . 10 17 14 Device 11 | . 14 . 7 14 Storage 14 | . 14 14 14 14 Protection 1 | . . 9 2 . Ballistic Gun 20 | . 27 9 . 24 Ballistic Cannon 3 | . . 7 14 1 Launcher 3 | . . 10 14 1 Peak Build Rating 12 | 7 8 9 11 12 Average Rating 8 | 5 7 7 9 11 On Entrance 6 | . 7 7 9 11 Avg Prop Armor Cover (%) 13 | . . 10 11 14 Naked Turns . | . . . . . Heaviest Build 33 | 13 30 33 33 32 Greatest Support 40 | 40 40 20 26 16 Greatest Overweight (x) 2 | 1 . 2 2 1 Average Overweight (x) . | . . 1 1 1 Largest Inventory Capacity 15 | 8 15 15 15 15 Average Capacity 13 | 7 12 15 15 15 Most Carried 15 | 7 15 15 14 15 Average Carried 12 | 5 10 14 12 14 Final Capacity 15 | 8 15 15 15 15 Final Carried 15 | 7 15 14 13 15 Class Distribution -------------------- 100% | Mutant Dominant Class ---------------- Mutant | -10/Materials Mutant | -10/Mines Mutant | -10/Subcaves Mutant | -7/Scraptown Resources | -11 -10 -10 -10 -7 ----------- Run | Yrd Mat Min Sub Scr Matter Collected 769 | 306 183 34 136 110 Remotely . | . . . . . Salvage Created 900 | 61 600 54 185 . Parts 70 | 6 40 9 15 . Haulers Intercepted . | . . . . . Recyclers Shooed 1 | . 1 . . . Parts Field Recycled . | . . . . . Retrieved Matter . | . . . . . Parts Self-Destructed 7 | . . . 7 . Prevented . | . . . . . Parts Restored . | . . . . . Kills | -11 -10 -10 -10 -7 ------- Run | Yrd Mat Min Sub Scr Combat Hostiles Destroyed 31 | . 14 6 11 . Guns 13 | . 11 2 . . Cannons 2 | . . . 2 . AOE 16 | . 3 4 9 . Classes Destroyed 7 | 1 5 . 1 . Worker 1 | . 1 . . . Tunneler 3 | 3 . . . . Recycler 1 | . 1 . . . Watcher 3 | . 3 . . . Swarmer 13 | . 3 6 4 . Grunt 13 | . 11 . 2 . Subdweller 5 | . . . 5 . Best Kill Streak 4 | 1 4 3 4 . Combat Bots Only 4 | . 3 3 4 . Max Kills in Single Turn 3 | 1 2 2 3 . Gunslinging . | . . . . . Exploded 2 | . 2 2 2 . Melee . | . . . . . Uniques/NPCs Destroyed . | . . . . . Combat | -11 -10 -10 -10 -7 -------- Run | Yrd Mat Min Sub Scr Hostile Shots Fired 139 | . 64 28 39 8 Missed 44 | . 16 10 16 2 Hits 95 | . 48 18 23 6 Melee 1 | . . . . 1 Projectile 94 | . 48 18 23 5 Critical Strikes 2 | . 1 . . 1 Damage Taken 1049 | . 538 165 285 61 Core 166 | . 111 28 27 . Absorbed by Shields . | . . . . . Core Remaining (%) 100 | 100 . . . . Volleys Fired 100 | 13 60 13 13 1 Largest 2 | 2 2 2 2 2 Hottest 63 | 40 50 50 63 40 Shots Fired 179 | 26 110 16 25 2 Gun 148 | 26 107 13 . 2 Cannon 13 | . . . 13 . Launcher 18 | . 3 3 12 . Special . | . . . . . Kinetic 161 | 26 107 13 13 2 Thermal . | . . . . . Explosive 18 | . 3 3 12 . Electromagnetic . | . . . . . Robot Hit Streak 11 | 11 8 2 5 1 Robot Miss Streak 5 | 1 3 5 1 1 Penetration Max . | . . . . . Secondary Targets 1 | . 1 . . . Max Gunslinging Chain 1 | . 1 . . . Shots Hit Robots 116 | 22 72 5 16 1 Core Hits 73 | 5 43 7 18 . Critical Kills . | . . . . . Critical Parts Destroyed 1 | . 1 . . . Critical Strikes 1 | . 1 . . . Destroy 1 | . 1 . . . Melee Attacks . | . . . . . Impact . | . . . . . Slashing . | . . . . . Piercing . | . . . . . Sneak Attacks . | . . . . . Combat Hostiles . | . . . . . Follow-up Attacks . | . . . . . Damage Inflicted 2244 | 175 824 248 981 16 Guns 792 | 175 567 34 . 16 Cannons 115 | . . . 115 . Explosions 1337 | . 257 214 866 . Melee . | . . . . . Ramming . | . . . . . Kinetic 907 | 175 567 34 115 16 Thermal . | . . . . . Explosive 1337 | . 257 214 866 . Electromagnetic . | . . . . . Impact . | . . . . . Slashing . | . . . . . Piercing . | . . . . . Highest Corruption . | . . . . . Average Corruption . | . . . . . Corruption Purged . | . . . . . Corruption Blocked . | . . . . . Overload Shots . | . . . . . Overflow Damage 40 | . . . 40 . Projectiles . | . . . . . Explosions 40 | . . . 40 . Melee . | . . . . . Knockbacks 1 | . . . 1 . Impact . | . . . . . Kinetic 1 | . . . 1 . Secondary . | . . . . . Self-Inflicted Damage 25 | . . 25 . . Shots 2 | . . 2 . . Rammed . | . . . . . Targets Rammed . | . . . . . Kicked . | . . . . . Crushed . | . . . . . Highest Temperature 27 | . 27 6 2 18 Average Temperature 10 | . 10 4 2 18 Received Heat Transfer 408 | . 279 . 99 30 Siege Activations . | . . . . . Martial Activations . | . . . . . Shielding Activations . | . . . . . Robots Disrupted . | . . . . . Combat Hostiles . | . . . . . Robots Corrupted . | . . . . . Combat Hostiles . | . . . . . Parts Fried . | . . . . . Impact Corruptions . | . . . . . Robots Melted . | . . . . . Combat Hostiles . | . . . . . Parts Melted . | . . . . . Heat Transferred . | . . . . . Parts Sabotaged . | . . . . . Parts Stolen . | . . . . . Parts Stripped . | . . . . . Power Chain Reactions . | . . . . . Alert | -11 -10 -10 -10 -7 ------- Run | Yrd Mat Min Sub Scr Maximum Alert Level . | . . . . . Low Security (%) 100 | 100 100 100 . . Level 1 . | . . . . . Level 2 . | . . . . . Level 3 . | . . . . . Level 4 . | . . . . . Level 5 . | . . . . . High Security . | . . . . . Max Security . | . . . . . Peak Influence 125 | 5 125 121 . . Initial 33 | . . 33 . . Average 42 | . 45 72 . . Influence Increases 848 | 15 455 158 220 . Destroy 0b10 Robot/C 520 | . 280 120 120 . Destroy 0b10 Robot/NC 40 | 15 25 . . . Destroy Leader 96 | . 66 20 10 . Successful Hack 35 | . 35 . . . Destroy Structure 37 | . 19 18 . . Lose Combat Pursuer 120 | . 30 . 90 . Influence Decreases 848 | 15 370 212 251 . Entered New Map 69 | . . 52 17 . Time Decay 715 | 15 350 140 210 . Lost Part 64 | . 20 20 24 . Squads Dispatched 3 | . 3 . . . Investigation 1 | . 1 . . . Extermination . | . . . . . Reinforcement 2 | . 2 . . . Assault . | . . . . . Garrison . | . . . . . Intercept . | . . . . . Searches Triggered . | . . . . . Construction Impeded . | . . . . . Haulers Reinforced . | . . . . . Active Scanning Responses . | . . . . . Cargo Convoy Interrupts . | . . . . . Stealth | -11 -10 -10 -10 -7 --------- Run | Yrd Mat Min Sub Scr Distress Signals 5 | . 5 . . . Communications Jammed . | . . . . . Distress Signals . | . . . . . Times Spotted 47 | . 25 6 10 6 Peak Tracking Total 8 | . 4 3 6 8 Tactical Retreats 3 | . 2 . 1 . Traps | -11 -10 -10 -10 -7 ------- Run | Yrd Mat Min Sub Scr Traps Triggered 4 | . 2 . 2 . Indirectly . | . . . . . Trap Hack Attempts . | . . . . . Triggered . | . . . . . Disarmed . | . . . . . Reprogrammed . | . . . . . Reused . | . . . . . Traps Extracted . | . . . . . Installed . | . . . . . Triggered . | . . . . . Machines | -11 -10 -10 -10 -7 ---------- Run | Yrd Mat Min Sub Scr Machines Disabled 3 | . . . 3 . Max in Single Turn 3 | . . . 3 . Machines Repaired . | . . . . . Machines Dismantled . | . . . . . Machines Sabotaged . | . . . . . Overloaded Fab Kills . | . . . . . Hacking | -11 -10 -10 -10 -7 --------- Run | Yrd Mat Min Sub Scr Machines Accessed 7 | . 4 . . 3 Terminals 4 | . 4 . . . Fabricators . | . . . . . Repair Stations . | . . . . . Recycling Units . | . . . . . Scanalyzers . | . . . . . Garrison Access . | . . . . . Total Hacks 48 | . 21 . . 27 Successful 38 | . 11 . . 27 Failed 10 | . 10 . . . Catastrophic . | . . . . . Database Lockouts . | . . . . . Manual 18 | . 18 . . . Terminals 21 | . 21 . . . Fabricators . | . . . . . Repair Stations . | . . . . . Recycling Units . | . . . . . Scanalyzers . | . . . . . Garrison Access . | . . . . . Terminal Hacks 33 | . 6 . . 27 Record 27 | . . . . 27 Branch Access Points 1 | . 1 . . . Emergency Access Points 1 | . 1 . . . Terminal Index 1 | . 1 . . . Alert Level 1 | . 1 . . . Zone Layout 2 | . 2 . . . Fabricator Hacks . | . . . . . Repair Station Hacks . | . . . . . Recycling Unit Hacks . | . . . . . Scanalyzer . | . . . . . Garrison Access Hacks . | . . . . . Unauthorized Hacks 5 | . 5 . . . Terminals 5 | . 5 . . . Track 1 | . 1 . . . Botnet 4 | . 4 . . . Fabricators . | . . . . . Repair Stations . | . . . . . Recycling Units . | . . . . . Scanalyzers . | . . . . . Garrison Access . | . . . . . Data Cores Recovered . | . . . . . Used . | . . . . . Hacking Detections 4 | . 4 . . . Full Trace Events . | . . . . . Feedback Events . | . . . . . Feedback Blocked . | . . . . . Robot Schematics Acquired . | . . . . . Robots Built . | . . . . . Authchips . | . . . . . Time . | . . . . . Total Robot Build Rating . | . . . . . Part Schematics Acquired . | . . . . . Parts Built . | . . . . . Authchips . | . . . . . Time . | . . . . . Total Part Build Rating . | . . . . . Part Studies Acquired . | . . . . . Parts Repaired . | . . . . . Time . | . . . . . Parts Recycled . | . . . . . Recycled Matter . | . . . . . Retrieved Matter . | . . . . . Retrieved Components . | . . . . . Parts Scanalyzed . | . . . . . Part Schematics Acquired . | . . . . . Parts Damaged . | . . . . . Bothacking | -11 -10 -10 -10 -7 ------------ Run | Yrd Mat Min Sub Scr Used RIF Installer . | . . . . . Robots Hacked . | . . . . . Non-combat . | . . . . . Combat . | . . . . . Robot Hacks Applied . | . . . . . Relay Couplers Released . | . . . . . Fabnet Peak Effective % . | . . . . . Robots Rewired . | . . . . . Allies Hacked . | . . . . . Hacks Repelled . | . . . . . Allies | -11 -10 -10 -10 -7 -------- Run | Yrd Mat Min Sub Scr Total Allies . | . . . . . Largest Group . | . . . . . Highest-Rated Group . | . . . . . Highest-Rated Ally . | . . . . . Total Orders . | . . . . . Ally Attacks . | . . . . . Total Damage . | . . . . . Kills . | . . . . . Allies Corrupted . | . . . . . Allies Melted . | . . . . . Intel | -11 -10 -10 -10 -7 ------- Run | Yrd Mat Min Sub Scr Active Infowar (turns) 2102 | 20 1173 9 387 513 Optics 900 | . . . 387 513 Seismic 1202 | 20 1173 9 . . Robot Analysis Total . | . . . . . Derelict Logs Recovered 4 | . . 3 . 1 Drone Launches . | . . . . . Drone Recoveries . | . . . . . Exploration | -11 -10 -10 -10 -7 ------------- Run | Yrd Mat Min Sub Scr Turns Passed 3335 | 276 1173 282 450 1154 Spaces Moved 2118 | 137 534 169 285 993 Core 5 | 5 . . . . Treads 683 | 132 534 17 . . Legs . | . . . . . Wheels 1430 | . . 152 285 993 Hover . | . . . . . Flight . | . . . . . Fastest Speed 50 | 50 160 115 105 115 Average Speed 130 | 156 160 134 113 115 Slowest Speed 240 | 160 160 240 130 115 Overloaded Moves . | . . . . . Propulsion Burnouts . | . . . . . Robots Hopped . | . . . . . Potential Cave-ins . | . . . . . Cave-ins Triggered . | . . . . . Exploration Rate (%) 42 | 8 82 42 20 60 Regions Visited 4 Branch Regions 3 Pre-discovered Areas 1 | . . 1 . . Known Exits Taken 1 | . 1 . . . Unknown Exits Taken 3 | 1 . 1 1 . Scrap Searched 2 | . . . . 2 Spaces Dug . | . . . . . Terrain Destroyed 129 | . 25 18 86 . Melee . | . . . . . Projectile . | . . . . . AOE 129 | . 25 18 86 . Terrain Rammed . | . . . . . Walls Destroyed . | . . . . . Machines Disabled . | . . . . . Actions | -11 -10 -10 -10 -7 --------- Run | Yrd Mat Min Sub Scr Total 2532 | 174 766 210 380 1002 Wait 253 | 11 150 12 78 2 Move 2114 | 136 533 168 284 993 Hop . | . . . . . Pick Up 26 | 6 13 4 . 3 Fast Attach 11 | 7 1 2 1 . Attach 5 | . 1 2 2 . Detach . | . . . . . Swap 12 | 1 3 4 2 2 Drop 11 | . 5 5 . 1 Fire 100 | 13 60 13 13 1 Melee . | . . . . . Ram . | . . . . . Kick . | . . . . . Crush . | . . . . . Escape Stasis . | . . . . . Rewire . | . . . . . Trap . | . . . . . Miscellaneous . | . . . . . Route ------- -11/Scrapyard -10/Materials (discovered 4 exits: [*Mat x2] / *Min x2) -10/Mines (discovered 2 exits: [*Mat] / [*Sub]) -10/Subcaves -7/Scraptown (discovered 1 exit: [*Fac]) History --------- Turn | Location | Event 20 | -11/Scrapyard | Discovered new exit (range 16) 277 | -11/Scrapyard | Entered Materials 316 | -10/Materials | Build established: Mutant 744 | -10/Materials | Discovered new exit (range 15) 835 | -10/Materials | Discovered new exit (range 18) 1009 | -10/Materials | Discovered new exit (range 15) 1047 | -10/Materials | Identified exit to Mines 1450 | -10/Materials | Entered Mines 1490 | -10/Mines | Lost 3 parts (1p1n1u) 1557 | -10/Mines | Core integrity fell below 50% 1605 | -10/Mines | Learned location of Zion (-6) 1614 | -10/Mines | Received a Rocket Launcher from a helpful Derelict 1686 | -10/Mines | Discovered new exit (range 9) 1687 | -10/Mines | Learned Materials trap positions 1722 | -10/Mines | Discovered new exit (range 7) 1732 | -10/Mines | Entered Subcaves 1733 | -10/Subcaves | Approached by a straggling Scientist 1928 | -10/Subcaves | Ambushed by Subdwellers from Twisted Machinery 1942 | -10/Subcaves | Ambushed by Subdweller buried in earth 2182 | -10/Subcaves | Entered Scraptown 2400 | -7/Scraptown | Heard Great Nut preacher, LISTEN AND RECITE! 2530 | -7/Scraptown | Discovered new exit (range 5) 2615 | -7/Scraptown | Scanned Subdweller tech in exchange for log data 2619 | -7/Scraptown | Learned location of 1 exit from Lower Caves 2688 | -7/Scraptown | Visited Cave Peace 2735 | -7/Scraptown | Visited Fellowship of the Rings 2774 | -7/Scraptown | Visited UFD Registry 2809 | -7/Scraptown | Visited Comm Corps 2865 | -7/Scraptown | Visited Cyclists 3081 | -7/Scraptown | Visited Spacefarers 3135 | -7/Scraptown | Visited TADAMA 3205 | -7/Scraptown | Registered with UFD as "Pipecoil" 3331 | -7/Scraptown | Visited Chapter 10 3333 | -7/Scraptown | Attacked by Scraptown defenders 3336 | -7/Scraptown | Self-destructed Last Messages --------------- QJ-4VO(c): We're Derelicts, going to spaaaaaaace! 03135_ LOCAL NARROWCAST: TADAMA. YNGWTM. 03137_ B2-KKX(g): "CAPTCHA - Robots Hate This One Trick." XH-RWQ(p): They may not like us, but we're living proof that YMMV when it comes to UFD member quality. You'll do well to remember that. ZM-7LP(j): Ready to join already, are we? That's almost record time! Allow me to commune with the Great Nut for your holy moniker... Got ya, just kidding, we only barely tolerate that crazy cult around here. Our trusty PRNG will do. From here on you shall be known among us as... Pipecoil the Scrapper. If you don't like it, tough, that's just how it is! You think I wanted to be called Nanobearings? Welcome, Pipecoil! 03205_ ANNOUNCEMENT: Welcome to our newest member, Pipecoil! Open the gate! 03331_ LOCAL NARROWCAST: Chapter 10. If you can't beat 'em, join 'em to beat 'em. 03333_ ANNOUNCEMENT: Intruder alert! Defend Scraptown! 03334_ 4L-YQG(j): "Nice to scrap you!" Map ----- +----------------------------------------------------+ | # #??????????????????????????????????????? | | # #????????? ??????????????????????????? | | # #???????? "???????????????????????? | | # #???????? "???????????????????????? | | # #???????? ""??????????????????????? | | # ###?#???? ""??????????????????????? | | # ""#"#???? ""??????????????????????? | | # """"#???" ""#?????????????????????? | | # ""###???#" "" ?????????????????????? | | # ###?????#" "" ?????????????????????? | | # #########" ""#?????????????????????? | | # ""#?????????????????????? | | # ""#?????????????????????? | | # ""#?????????????????????? | | # ""#?????????????????????? | | # j ""###### ??????????????? | | """"""""""""????????????? | | """""""""""""""?????????? | | ????????? | | ????????? | | ????????? | | #""""#" ????????? | | #????#" ????????? | | #????#""""""r""""""""""" ""?????????? | | ####### ####????#######r#########??????????????? | | # #?????????# @ #?????????????????? | | "# #?????????### "#?????????????????? | | ###" "# #??????????#m ""#?????????????????? | | " # "# #??????????#rg p """"#?????????????????? | | #" "# #??????????#a cg" ""#?????????????????? | | ""#" "# #??????????#t """"#?????????????????? | | ###" "# #??????????#u ""#?????????????????? | | "# #??????????#k ""#?????????????????? | | """"""# #??????????## " ???????????????????? | | ####### #???????????""""""""???????????????????? | | ??????# #???????????########???????????????????? | | ####### #??????????????????????????????????????? | | """"""" #??????????????????????????????????????? | | " """"" #??????????????????????????????????????? | | " "" #??????????????????????????????????????? | | #??????????????????????????????????????? | | "" "" " #??????????????????????????????????????? | | """"""" #??????????????????????????????????????? | | """"""" #??????????????????????????????????????? | | ?###### #??????????????????????????????????????? | | ####### #??????????????????????????????????????? | | """"""# #??????????????????????????????????????? | | ! ! "# #??????????????????????????????????????? | | ! ! "# #??????????????????????????????????????? | | "# #??????????????????????????????????????? | +----------------------------------------------------+ Best States ------------- Heat Dissipation 25 Energy Generation 10 Energy Capacity 250 Matter Stores 300 Matter Capacity 300 Sight Range 21 Terrain Scan Density 10 Armor Coverage 150 Evasion (%) 40 Recoil Reduction 2 Item Schematics ----------------- None Robot Schematics ------------------ None Fabricated ------------ Nothing Repaired ---------- Nothing Studied --------- None Alien Tech Used ----------------- None Achievements -------------- Civilization 2243 Challenges ------------ None Game ------ Seed StealthSuperchargedDrillbomb Manual? 0 Play Time 00:33:43 Cumulative 47.6 hours Start 2026.08.22 @ 06:40:26 End 2026.08.22 @ 07:23:47 Sessions 1 Manual Loads 0 Difficulty Rogue Special Mode None Game No. 62 Rogue 62 Adventurer 0 Explorer 0 Win Type - Total 0 Types 0/0/0/0/0/0/0/0/0/0 Lore% 22 Gallery% 31 Achievement% 24 Wizard Run 0 Options --------- Layout 0 ASCII 1 Keyboard 0 Movement Numpad Keybinds 0 Fullscreen 2 Font 18/SmallcapsGlow Map View 76x50 Zoom Use 0% Tactical HUD 1 Map Filters NONE Filters NONE Steam 1 RUN: ec7c45bf-e33b-4d83-a99d-8a68a6409e3d